bitfinex-derivatives/quotes_BNBF0:USTF0_20250401
["timestamp","ask_amount","ask_price","bid_price","bid_amount"]
[1743528115243,1.37365141,608.64,608.43,0.32871488]
[1743528115443,1.37365141,608.63,608.43,0.32871488]
[1743528115645,1.37365141,608.62,608.43,0.32871488]
[1743528115840,1.37365141,608.61,608.43,0.32871488]
[1743528116050,1.37365141,608.6,608.43,0.32871488]
[1743528116249,1.37365141,608.59,608.43,0.32871488]
[1743528116445,1.37365141,608.58,608.43,0.32871488]
[1743528116648,1.37365141,608.57,608.43,0.32871488]
[1743528116850,1.37365141,608.56,608.43,0.32871488]
[1743528117050,1.37365141,608.55,608.43,0.32871488]
[1743528117250,1.37033531,608.54,608.43,0.32871488]
[1743528117549,1.144,608.95,608.43,0.32871488]
[1743528117750,1.37022406,608.94,608.43,0.32871488]
[1743528117950,1.37022406,608.93,608.43,0.32871488]
[1743528118148,1.37022406,608.92,608.43,0.32871488]
[1743528118348,1.37022406,608.91,608.43,0.32871488]
[1743528118545,1.37022406,608.9,608.43,0.32871488]
[1743528118749,1.37022406,608.89,608.43,0.32871488]
[1743528118949,1.144,608.95,608.43,0.32871488]
[1743528118950,1.37022406,608.88,608.43,0.32871488]
[1743528119150,1.37022406,608.87,608.43,0.32871488]
[1743528119351,1.37022406,608.86,608.43,0.32871488]
[1743528119551,1.37022406,608.85,608.43,0.32871488]
[1743528119747,1.37022406,608.84,608.43,0.32871488]
[1743528119945,1.37022406,608.83,608.43,0.32871488]
[1743528120145,1.37022406,608.82,608.43,0.32871488]
[1743528120346,1.37022406,608.81,608.43,0.32871488]
[1743528120549,1.37022406,608.8,608.43,0.32871488]
[1743528120850,1.37022406,608.79,608.43,0.32871488]
[1743528121046,1.37022406,608.78,608.43,0.32871488]
[1743528121252,1.37022406,608.77,608.43,0.32871488]
[1743528121552,1.37022406,608.76,608.43,0.32871488]
[1743528121758,1.36930764,608.75,608.43,0.32871488]
[1743528121951,1.36930764,608.74,608.43,0.32871488]
[1743528122149,1.36930764,608.73,608.43,0.32871488]
[1743528122347,1.36930764,608.72,608.43,0.32871488]
[1743528122550,1.36930764,608.71,608.43,0.32871488]
[1743528122751,1.36930764,608.7,608.43,0.32871488]
[1743528122951,1.36930764,608.69,608.43,0.32871488]
[1743528123151,1.36930764,608.68,608.43,0.32871488]
[1743528123347,1.144,608.95,608.43,0.32871488]
[1743528123348,1.36930764,608.67,608.43,0.32871488]
[1743528123550,1.36930764,608.66,608.43,0.32871488]
[1743528123753,1.144,608.95,608.43,0.32871488]
[1743528123955,1.36934457,608.94,608.43,0.32871488]
[1743528124150,1.36934457,608.93,608.43,0.32871488]
[1743528124351,1.36934457,608.92,608.43,0.32871488]
[1743528124554,1.36934457,608.91,608.43,0.32871488]
[1743528124856,1.144,608.95,608.43,0.32871488]
[1743528124857,1.36934457,608.9,608.43,0.32871488]
[1743528125152,1.36944513,608.89,608.43,0.32871488]
[1743528125355,1.36944513,608.88,608.43,0.32871488]
[1743528125654,1.36944513,608.87,608.43,0.32871488]
[1743528125855,1.36943295,608.86,608.43,0.32871488]
[1743528126055,1.36943295,608.85,608.43,0.32871488]
[1743528126255,1.36943295,608.84,608.43,0.32871488]
[1743528126555,1.36943295,608.83,608.43,0.32871488]
[1743528126753,1.36943295,608.82,608.43,0.32871488]
[1743528126954,1.36943295,608.81,608.43,0.32871488]
[1743528127156,1.36943295,608.8,608.43,0.32871488]
[1743528127456,1.36943295,608.79,608.43,0.32871488]
[1743528127658,1.36943295,608.78,608.43,0.32871488]
[1743528127854,1.36959822,608.77,608.43,0.32871488]
[1743528128055,1.36959822,608.76,608.43,0.32871488]
[1743528128251,1.36959822,608.75,608.43,0.32871488]
[1743528128451,1.36959822,608.74,608.43,0.32871488]
[1743528128657,1.36959822,608.73,608.43,0.32871488]
[1743528128853,1.36959822,608.72,608.43,0.32871488]
[1743528129058,1.144,608.95,608.43,0.32871488]
[1743528129357,1.37027567,608.94,608.43,0.32871488]
[1743528129557,1.37027567,608.93,608.43,0.32871488]
[1743528129757,1.37027567,608.92,608.43,0.32871488]
[1743528129958,1.37027567,608.91,608.43,0.32871488]
[1743528130257,1.37027567,608.9,608.43,0.32871488]
[1743528130459,1.37027567,608.89,608.43,0.32871488]
[1743528130654,1.144,608.95,608.43,0.32871488]
[1743528130655,1.37027567,608.88,608.43,0.32871488]
[1743528130853,1.37027567,608.87,608.43,0.32871488]
[1743528131057,1.37027567,608.86,608.43,0.32871488]
[1743528131358,1.37027567,608.85,608.43,0.32871488]
[1743528131660,1.37027567,608.84,608.43,0.32871488]
[1743528131855,1.37027567,608.83,608.43,0.32871488]
[1743528132054,1.37027567,608.82,608.43,0.32871488]
[1743528132255,1.37027567,608.81,608.43,0.32871488]
[1743528132453,1.37027567,608.8,608.43,0.32871488]
[1743528132657,1.37027567,608.79,608.43,0.32871488]
[1743528132857,1.144,608.95,608.43,0.32871488]
[1743528133060,1.37092857,608.94,608.43,0.32871488]
[1743528133259,1.37092857,608.93,608.43,0.32871488]
[1743528133460,1.37092857,608.92,608.43,0.32871488]
[1743528133669,1.3709419,608.91,608.43,0.32871488]
[1743528133862,1.3709419,608.9,608.43,0.32871488]
[1743528134065,1.3709419,608.89,608.43,0.32871488]
[1743528134262,1.3709419,608.88,608.43,0.32871488]
[1743528134463,1.3709419,608.87,608.43,0.32871488]
[1743528134667,1.3709419,608.86,608.43,0.32871488]
[1743528134868,1.3709419,608.85,608.43,0.32871488]
[1743528135064,1.3709419,608.84,608.43,0.32871488]
[1743528135269,1.3709419,608.83,608.43,0.32871488]
[1743528135469,1.3709419,608.82,608.43,0.32871488]
[1743528135669,1.3709419,608.81,608.43,0.32871488]
[1743528135866,1.37058933,608.8,608.43,0.32871488]
[1743528136063,1.37058933,608.79,608.43,0.32871488]
[1743528136262,1.37058933,608.78,608.43,0.32871488]
[1743528136468,1.37058933,608.77,608.43,0.32871488]
[1743528136669,1.37058933,608.76,608.43,0.32871488]
[1743528136869,1.144,608.95,608.43,0.32871488]
[1743528137068,1.37083246,608.94,608.43,0.32871488]
[1743528137265,1.37083246,608.93,608.43,0.32871488]
[1743528137468,1.37083246,608.92,608.43,0.32871488]
[1743528137665,1.37083246,608.91,608.43,0.32871488]
[1743528137865,1.37083246,608.9,608.43,0.32871488]
[1743528138068,1.37083246,608.89,608.43,0.32871488]
[1743528138264,1.37083246,608.88,608.43,0.32871488]
[1743528138571,1.37083246,608.87,608.43,0.32871488]
[1743528138770,1.37083246,608.86,608.43,0.32871488]
[1743528138972,1.37083246,608.85,608.43,0.32871488]
[1743528139171,1.37083246,608.84,608.43,0.32871488]
[1743528139371,1.37083246,608.83,608.43,0.32871488]
[1743528139571,1.144,608.95,608.43,0.32871488]
[1743528139771,1.37131512,608.94,608.43,0.32871488]
[1743528139970,1.37131512,608.93,608.43,0.32871488]
[1743528140165,1.37131512,608.92,608.43,0.32871488]
[1743528140369,1.37131512,608.91,608.43,0.32871488]
[1743528140570,1.144,608.95,608.43,0.32871488]
[1743528140767,1.37187555,608.94,608.43,0.32871488]
[1743528140968,1.37187555,608.93,608.43,0.32871488]
[1743528141165,1.144,608.95,608.43,0.32871488]
[1743528142170,1.37215204,608.94,608.43,0.32871488]
[1743528142367,1.144,608.95,608.43,0.32871488]
[1743528142572,1.37225494,608.94,608.43,0.32871488]
[1743528142773,1.144,608.95,608.43,0.32871488]
[1743528142968,1.37218355,608.94,608.43,0.32871488]
[1743528143275,1.144,608.95,608.43,0.32871488]
[1743528143569,1.37214415,608.94,608.43,0.32871488]
[1743528143769,1.144,608.95,608.43,0.32871488]
[1743528143971,1.37210535,608.94,608.43,0.32871488]
[1743528144171,1.144,608.95,608.43,0.32871488]
[1743528153477,3.659,608.96,608.43,0.32871488]
[1743528156482,4.834,608.96,608.43,0.32871488]
[1743528170695,1.37697049,608.95,608.43,0.32871488]
[1743528170899,1.37696723,608.94,608.43,0.32871488]
[1743528171100,4.834,608.96,608.43,0.32871488]
[1743528171302,1.37715842,608.95,608.43,0.32871488]
[1743528171598,1.37715842,608.94,608.43,0.32871488]
[1743528171798,1.37715842,608.93,608.43,0.32871488]
[1743528171996,4.834,608.96,608.43,0.32871488]
[1743528172199,1.3785296,608.95,608.43,0.32871488]
[1743528172397,1.3785296,608.94,608.43,0.32871488]
[1743528172603,1.3785296,608.93,608.43,0.32871488]
[1743528172804,1.3785296,608.92,608.43,0.32871488]
[1743528173004,4.834,608.96,608.43,0.32871488]
[1743528173204,1.37886195,608.95,608.43,0.32871488]
[1743528173500,1.37886195,608.94,608.43,0.32871488]
[1743528173702,1.37886195,608.93,608.43,0.32871488]
[1743528173903,1.37886195,608.92,608.43,0.32871488]
[1743528174206,1.37886195,608.91,608.43,0.32871488]
[1743528174504,1.37886195,608.9,608.43,0.32871488]
[1743528174703,4.834,608.96,608.43,0.32871488]
[1743528174904,1.37916872,608.95,608.43,0.32871488]
[1743528175098,1.37916872,608.94,608.43,0.32871488]
[1743528175302,1.37916872,608.93,608.43,0.32871488]
[1743528175504,1.37916872,608.92,608.43,0.32871488]
[1743528175706,4.834,608.96,608.43,0.32871488]
[1743528175707,1.37916872,608.91,608.43,0.32871488]
[1743528175903,4.834,608.96,608.43,0.32871488]
[1743528176105,1.37950581,608.95,608.43,0.32871488]
[1743528176306,1.37950581,608.94,608.43,0.32871488]
[1743528176506,1.37950581,608.93,608.43,0.32871488]
[1743528176705,1.37950581,608.92,608.43,0.32871488]
[1743528176902,1.37950581,608.91,608.43,0.32871488]
[1743528177102,4.834,608.96,608.43,0.32871488]
[1743528177310,1.38024037,608.95,608.43,0.32871488]
[1743528177607,1.38024037,608.94,608.43,0.32871488]
[1743528177807,4.834,608.96,608.43,0.32871488]
[1743528177808,1.38024037,608.93,608.43,0.32871488]
[1743528178000,1.38024037,608.92,608.43,0.32871488]
[1743528178205,1.38024037,608.91,608.43,0.32871488]
[1743528178502,1.38024037,608.9,608.43,0.32871488]
[1743528178707,1.38024037,608.89,608.43,0.32871488]
[1743528178909,1.38073699,608.88,608.43,0.32871488]
[1743528179205,1.38103427,608.87,608.43,0.32871488]
[1743528179412,4.834,608.96,608.43,0.32871488]
[1743528179613,1.38109705,608.95,608.43,0.32871488]
[1743528179912,1.38109705,608.94,608.43,0.32871488]
[1743528180118,1.38109705,608.93,608.43,0.32871488]
[1743528180318,1.38109705,608.92,608.43,0.32871488]
[1743528180509,1.38109705,608.91,608.43,0.32871488]
[1743528180715,1.38109705,608.9,608.43,0.32871488]
[1743528180913,1.38109705,608.89,608.43,0.32871488]
[1743528181117,1.38109705,608.88,608.43,0.32871488]
[1743528181314,1.38109705,608.87,608.43,0.32871488]
[1743528181518,1.38109705,608.86,608.43,0.32871488]
[1743528181719,4.834,608.96,608.43,0.32871488]
[1743528181920,1.38201298,608.95,608.43,0.32871488]
[1743528182218,1.38201298,608.94,608.43,0.32871488]
[1743528182419,1.38201298,608.93,608.43,0.32871488]
[1743528182618,1.38201298,608.92,608.43,0.32871488]
[1743528182812,1.38201298,608.91,608.43,0.32871488]
[1743528183016,1.38201298,608.9,608.43,0.32871488]
[1743528183217,1.38201298,608.89,608.43,0.32871488]
[1743528183514,1.38201298,608.88,608.43,0.32871488]
[1743528183720,1.38201298,608.87,608.43,0.32871488]
[1743528183915,4.834,608.96,608.43,0.32871488]
[1743528183916,1.38201298,608.86,608.43,0.32871488]
[1743528184122,1.38201298,608.85,608.43,0.32871488]
[1743528184324,4.834,608.96,608.43,0.32871488]
[1743528184614,1.38294208,608.95,608.43,0.32871488]
[1743528184821,1.38294208,608.94,608.43,0.32871488]
[1743528185121,1.38294208,608.93,608.43,0.32871488]
[1743528185324,1.38294208,608.92,608.43,0.32871488]
[1743528185514,1.38294208,608.91,608.43,0.32871488]
[1743528185719,1.38294208,608.9,608.43,0.32871488]
[1743528186019,1.38294208,608.89,608.43,0.32871488]
[1743528186321,1.38294208,608.88,608.43,0.32871488]
[1743528186521,4.834,608.96,608.43,0.32871488]
[1743528186722,1.3840531,608.95,608.43,0.32871488]
[1743528186923,1.38405255,608.94,608.43,0.32871488]
[1743528187118,1.38405255,608.93,608.43,0.32871488]
[1743528187315,1.38405255,608.92,608.43,0.32871488]
[1743528187516,1.38405255,608.91,608.43,0.32871488]
[1743528187722,1.38405255,608.9,608.43,0.32871488]
[1743528187916,1.38405255,608.89,608.43,0.32871488]
[1743528188120,1.38405255,608.88,608.43,0.32871488]
[1743528188316,1.38405255,608.87,608.43,0.32871488]
[1743528188523,1.38405255,608.86,608.43,0.32871488]
[1743528188822,1.38405255,608.85,608.43,0.32871488]
[1743528189022,1.38405255,608.84,608.43,0.32871488]
[1743528189223,1.38405255,608.83,608.43,0.32871488]
[1743528189423,1.38405255,608.82,608.43,0.32871488]
[1743528189622,1.38405255,608.81,608.43,0.32871488]
[1743528189821,1.38405255,608.8,608.43,0.32871488]
[1743528190025,1.38405255,608.79,608.43,0.32871488]
[1743528190221,4.834,608.96,608.43,0.32871488]
[1743528190522,1.38451024,608.95,608.43,0.32871488]
[1743528190723,1.38451024,608.94,608.43,0.32871488]
[1743528190924,4.834,608.96,608.43,0.32871488]
[1743528191123,1.38479066,608.95,608.43,0.32871488]
[1743528191323,4.834,608.96,608.43,0.32871488]
[1743528194728,1.38434113,608.95,608.43,0.32871488]
[1743528194922,4.834,608.96,608.43,0.32871488]
[1743528195123,1.38436214,608.95,608.43,0.32871488]
[1743528195422,1.38442832,608.94,608.43,0.32871488]
[1743528195625,4.834,608.96,608.43,0.32871488]
[1743528195820,1.38444793,608.95,608.43,0.32871488]
[1743528196024,4.834,608.96,608.43,0.32871488]
[1743528197525,1.38487681,608.95,608.43,0.32871488]
[1743528197721,1.38487681,608.94,608.43,0.32871488]
[1743528197923,1.38487681,608.93,608.43,0.32871488]
[1743528198123,1.38477846,608.92,608.43,0.32871488]
[1743528198323,1.38477846,608.91,608.43,0.32871488]
[1743528198527,4.834,608.96,608.43,0.32871488]
[1743528198729,1.38482464,608.95,608.43,0.32871488]
[1743528198925,1.38482464,608.94,608.43,0.32871488]
[1743528199129,1.38482464,608.93,608.43,0.32871488]
[1743528199332,1.38482464,608.92,608.43,0.32871488]
[1743528199531,1.38482464,608.91,608.43,0.32871488]
[1743528199831,4.834,608.96,608.43,0.32871488]
[1743528200030,1.38473727,608.95,608.43,0.32871488]
[1743528200226,1.38470603,608.94,608.43,0.32871488]
[1743528200431,1.38470603,608.93,608.43,0.32871488]
[1743528200632,1.38470603,608.92,608.43,0.32871488]
[1743528200833,1.38470603,608.91,608.43,0.32871488]
[1743528201034,1.38470603,608.9,608.43,0.32871488]
[1743528201231,1.38470603,608.89,608.43,0.32871488]
[1743528201431,1.38470603,608.88,608.43,0.32871488]
[1743528201732,1.38478583,608.87,608.43,0.32871488]
[1743528201931,4.834,608.96,608.43,0.32871488]
[1743528202127,1.38479302,608.95,608.43,0.32871488]
[1743528202431,1.38479302,608.94,608.43,0.32871488]
[1743528202632,1.38479302,608.93,608.43,0.32871488]
[1743528202833,1.38479302,608.92,608.43,0.32871488]
[1743528203036,1.38479302,608.91,608.43,0.32871488]
[1743528203227,1.38479302,608.9,608.43,0.32871488]
[1743528203431,1.38479302,608.89,608.43,0.32871488]
[1743528203628,1.38479302,608.88,608.43,0.32871488]
[1743528203828,1.38479302,608.87,608.43,0.32871488]
[1743528204035,1.38479302,608.86,608.43,0.32871488]
[1743528204234,4.834,608.96,608.43,0.32871488]
[1743528204533,1.38454143,608.95,608.43,0.32871488]
[1743528204734,1.38454143,608.94,608.43,0.32871488]
[1743528205028,1.38454143,608.93,608.43,0.32871488]
[1743528205233,1.38454143,608.92,608.43,0.32871488]
[1743528205534,1.38454143,608.91,608.43,0.32871488]
[1743528205734,1.38454143,608.9,608.43,0.32871488]
[1743528205935,1.38454143,608.89,608.43,0.32871488]
[1743528206136,1.38454143,608.88,607.98,0.44589696]
[1743528206336,1.38454143,608.87,607.98,0.44589696]
[1743528206537,1.38454143,608.86,607.98,0.44589696]
[1743528206738,1.175,608.96,607.98,0.44589696]
[1743528206940,1.38444838,608.95,607.73,1.22592793]
[1743528207239,1.38444838,608.94,607.73,1.22592793]
[1743528207439,1.38444838,608.93,607.73,1.22592793]
[1743528207639,1.38444838,608.92,607.73,1.22592793]
[1743528207836,1.38444838,608.91,607.73,1.22592793]
[1743528208033,1.38444838,608.9,607.73,1.22592793]
[1743528208236,1.38444838,608.89,607.73,1.22592793]
[1743528208438,1.175,608.96,607.73,1.22592793]
[1743528208439,1.38444838,608.88,607.73,1.22592793]
[1743528208640,1.38444838,608.87,607.73,1.22592793]
[1743528208833,1.38444838,608.86,607.73,1.22592793]
[1743528209034,1.38444838,608.85,607.73,1.22592793]
[1743528209239,1.38444838,608.84,607.73,1.22592793]
[1743528209441,1.38444838,608.83,607.91,1.22592793]
[1743528209635,1.38444838,608.82,607.91,1.22592793]
[1743528209836,1.38444838,608.81,607.91,1.22592793]
[1743528210040,1.38444838,608.8,607.91,1.22592793]
[1743528210342,1.38444838,608.79,607.91,1.22592793]
[1743528210538,1.38444838,608.78,607.91,1.22592793]
[1743528210741,1.38444838,608.77,607.91,1.22592793]
[1743528210941,1.38444838,608.76,607.91,1.22592793]
[1743528211141,1.38325885,608.75,607.91,1.22592793]
[1743528211341,1.38325885,608.74,607.91,1.22592793]
[1743528211541,1.38325885,608.73,607.91,1.22592793]
[1743528211742,1.38325885,608.72,607.91,1.22592793]
[1743528211939,1.38325885,608.71,607.91,1.22592793]
[1743528212142,1.38300582,608.7,607.6,1.22592793]
[1743528212344,2.672,608.83,607.6,1.22592793]
[1743528212538,1.38268137,608.82,607.6,1.22592793]
[1743528212739,1.38268137,608.81,607.6,1.22592793]
[1743528212939,1.38268137,608.8,607.6,1.22592793]
[1743528213141,1.38268137,608.79,607.6,1.22592793]
[1743528213345,1.38268137,608.78,607.6,1.22592793]
[1743528213546,1.38268137,608.77,607.6,1.22592793]
[1743528213746,1.38268137,608.76,607.6,1.22592793]
[1743528213944,1.38268137,608.75,607.6,1.22592793]
[1743528214240,1.38268137,608.74,607.6,1.22592793]
[1743528214446,1.38268137,608.73,607.6,1.22592793]
[1743528214643,1.38268137,608.72,607.57,1.51184527]
[1743528214946,1.508,608.78,607.57,1.51184527]
[1743528214947,1.38268137,608.71,607.57,1.51184527]
[1743528215149,1.38268137,608.7,607.57,1.51184527]
[1743528215346,1.508,608.78,607.57,1.22592793]
[1743528215646,1.38209234,608.77,607.57,1.22592793]
[1743528215847,1.38209234,608.76,607.57,1.22592793]
[1743528216147,1.38209234,608.75,607.57,1.22592793]
[1743528216340,1.38209234,608.74,607.57,1.22592793]
[1743528216544,1.38209234,608.73,607.57,1.22592793]
[1743528216846,1.38209234,608.72,607.57,1.22592793]
[1743528217048,1.508,608.78,607.57,1.22592793]
[1743528217245,1.38225332,608.77,607.56,0.28593026]
[1743528217446,1.38225332,608.76,607.56,0.28593026]
[1743528217649,1.508,608.78,607.56,0.28593026]
[1743528220854,1.508,608.78,607.61,1.22592793]
[1743528222252,1.508,608.78,607.6,1.22592793]
[1743528224352,1.508,608.78,607.77,1.22592793]
[1743528226251,1.508,608.78,607.72,1.22592793]
[1743528228155,1.508,608.78,607.78,1.22592793]
[1743528231156,1.508,608.78,607.98,1.22592793]
[1743528233157,1.508,608.78,607.78,1.22592793]
[1743528234251,1.106,608.77,607.78,1.22592793]
[1743528235052,1.436,608.76,607.78,1.22592793]
[1743528235657,1.421,608.75,607.78,1.22592793]
[1743528236054,1.421,608.75,607.85,1.22592793]
[1743528240262,1.421,608.75,607.87,1.22592793]
[1743528242166,1.421,608.75,607.73,1.22592793]
[1743528244674,1.421,608.75,607.94,1.22592793]
[1743528246973,1.421,608.75,607.92,1.22592793]
[1743528251078,1.421,608.75,607.8,1.22592793]
[1743528252580,1.643,608.74,607.8,1.22592793]
[1743528253174,1.643,608.74,608.01,1.22592793]
[1743528255184,1.643,608.74,607.99,1.22592793]
[1743528257083,1.643,608.74,608.1,1.22592793]
[1743528259684,1.643,608.74,608.02,1.22592793]
[1743528260481,1.078,608.73,608.02,1.22592793]
[1743528261083,1.078,608.73,607.89,1.22592793]
[1743528264883,1.092,608.72,607.89,1.22592793]
[1743528265789,1.092,608.72,607.84,1.22592793]
[1743528267790,1.092,608.72,608.07,1.23050194]
[1743528268789,1.087,608.71,608.07,1.23050194]
[1743528269386,1.087,608.71,608.12,1.23050194]
[1743528270793,1.087,608.71,608.15,1.23050194]
[1743528273093,1.087,608.71,608.27,1.23050194]
[1743528275192,1.087,608.71,608.28,1.23050194]
[1743528277695,1.087,608.71,608.18,1.23050194]
[1743528278595,1.38853035,608.7,608.18,1.23050194]
[1743528278792,1.38853035,608.69,608.18,1.23050194]
[1743528278994,1.087,608.71,608.18,1.23050194]
[1743528279193,1.38793374,608.7,608.18,1.23050194]
[1743528279388,2.366,608.71,608.18,1.23050194]
[1743528279591,1.38794947,608.7,608.11,1.23050194]
[1743528279794,2.366,608.71,608.11,1.23050194]
[1743528279996,1.38795262,608.7,608.11,1.23050194]
[1743528280195,2.366,608.71,608.11,1.23050194]
[1743528280393,1.38795851,608.7,608.11,1.23050194]
[1743528280593,2.366,608.71,608.11,1.23050194]
[1743528280795,1.38795282,608.7,608.11,1.23050194]
[1743528280998,1.38795282,608.69,608.11,1.23050194]
[1743528281193,1.829,608.7,608.11,1.23050194]
[1743528281398,1.829,608.7,608.02,1.23050194]
[1743528281597,1.38793684,608.69,608.02,1.23050194]
[1743528281793,1.829,608.7,608.02,1.23050194]
[1743528281998,1.38792135,608.69,608.02,1.23050194]
[1743528282196,1.829,608.7,608.02,1.23050194]
[1743528282399,1.38790264,608.69,608.02,1.23050194]
[1743528282594,1.829,608.7,608.02,1.23050194]
[1743528282796,1.38789822,608.69,608.02,1.23050194]
[1743528282997,1.829,608.7,608.15,1.23050194]
[1743528283199,1.38788102,608.69,608.15,1.23050194]
[1743528283399,1.829,608.7,608.15,1.23050194]
[1743528283600,1.3878837,608.69,608.15,1.23050194]
[1743528283803,1.829,608.7,608.15,1.23050194]
[1743528284099,1.38789449,608.69,608.15,1.23050194]
[1743528284300,1.829,608.7,608.15,1.23050194]
[1743528284501,2.57687626,608.69,608.15,1.23050194]
[1743528284702,1.189,608.69,608.18,1.23050194]
[1743528285200,1.38783953,608.68,608.18,1.23050194]
[1743528285403,1.189,608.69,608.18,1.23050194]
[1743528285600,1.38780483,608.68,608.18,1.23050194]
[1743528285795,1.189,608.69,608.18,1.23050194]
[1743528286101,1.38776459,608.68,608.18,1.23050194]
[1743528286302,1.189,608.69,608.02,1.23050194]
[1743528286499,1.38773541,608.68,608.02,1.23050194]
[1743528286695,1.189,608.69,608.02,1.23050194]
[1743528288500,1.189,608.69,607.68,0.28585275]
[1743528288501,1.189,608.69,608.11,1.23050194]
[1743528290405,1.189,608.69,608.08,1.23050194]
[1743528293008,1.189,608.69,608.06,1.23050194]
[1743528294407,1.189,608.69,608.18,1.23050194]
[1743528296301,1.189,608.69,608.15,1.23050194]
[1743528298110,1.189,608.69,601.25,5.81343925]
[1743528298111,1.189,608.69,608.13,1.23050194]
[1743528300411,1.189,608.69,607.25,2.50293619]
[1743528300412,1.189,608.69,608.29,1.23050194]
[1743528303712,1.189,608.69,608.1,1.23050194]
[1743528307114,1.189,608.69,608.06,1.23050194]
[1743528309613,1.189,608.69,608.08,1.23050194]
[1743528310819,2.282,608.69,608.08,1.23050194]
[1743528312317,2.282,608.69,608.15,1.23050194]
[1743528314624,2.282,608.69,608.12,1.23050194]
[1743528315621,3.497,608.69,608.12,1.23050194]
[1743528316022,3.497,608.69,607.97,1.23050194]
[1743528316225,1.3863835,608.68,607.97,1.23050194]
[1743528316531,1.3863835,608.67,607.97,1.23050194]
[1743528316726,1.3863835,608.66,607.97,1.23050194]
[1743528316926,1.3863835,608.65,607.97,1.23050194]
[1743528317126,3.497,608.69,607.97,1.23050194]
[1743528317327,1.38624739,608.68,607.97,1.23050194]
[1743528317523,1.38624739,608.67,607.97,1.23050194]
[1743528317726,3.497,608.69,607.97,1.23050194]
[1743528317926,1.38615133,608.68,607.97,1.23050194]
[1743528318123,1.38615133,608.67,607.97,1.23050194]
[1743528318323,1.38615133,608.66,607.83,1.23050194]
[1743528318527,1.38615133,608.65,607.83,1.23050194]
[1743528318724,3.497,608.69,607.83,1.23050194]
[1743528319029,1.38600736,608.68,607.83,1.23050194]
[1743528319332,1.38600736,608.67,607.83,1.23050194]
[1743528319527,1.38600736,608.66,607.83,1.23050194]
[1743528319722,1.38590522,608.65,607.83,1.23050194]
[1743528319928,3.497,608.69,607.83,1.23050194]
[1743528320225,1.38591482,608.68,607.83,1.23050194]
[1743528320430,3.497,608.69,607.9,1.23050194]
[1743528320431,1.38591482,608.67,607.9,1.23050194]
[1743528320631,1.38591482,608.66,607.9,1.23050194]
[1743528320832,1.38591482,608.65,607.9,1.23050194]
[1743528321032,1.38591482,608.64,607.9,1.23050194]
[1743528321330,1.38555932,608.63,607.9,1.23050194]
[1743528321531,1.469,608.65,607.9,1.23050194]
[1743528322828,1.469,608.65,607.1,2.50293619]
[1743528322829,1.469,608.65,607.81,1.23050194]
[1743528324635,1.469,608.65,608.02,1.23050194]
[1743528325934,1.469,608.65,607.9,1.23050194]
[1743528328636,1.469,608.65,607.95,1.23050194]
[1743528330732,1.469,608.65,608.25,1.23050194]
[1743528332837,1.469,608.65,607.64,2.50293619]
[1743528332838,1.469,608.65,607.88,1.23050194]
[1743528335041,1.469,608.65,607.89,1.23050194]
[1743528337841,1.469,608.65,607.81,1.23050194]
[1743528339141,1.469,608.65,607.76,1.23050194]
[1743528341446,1.469,608.65,608.05,1.23050194]
[1743528342242,0.28587976,609.35,608.05,1.23050194]
[1743528342442,1.38438726,609.34,608.05,1.23050194]
[1743528342637,1.38438726,609.33,608.05,1.23050194]
[1743528342844,1.38438726,609.32,608.05,1.23050194]
[1743528343143,1.38438726,609.31,608.05,1.23050194]
[1743528343338,1.38438726,609.3,608.05,1.23050194]
[1743528343543,1.38438726,609.29,608.05,1.23050194]
[1743528343746,1.38438726,609.28,607.95,1.23050194]
[1743528344044,1.38438726,609.27,607.95,1.23050194]
[1743528344243,1.38438726,609.26,607.95,1.23050194]
[1743528344438,1.38438726,609.25,607.95,1.23050194]
[1743528344645,1.38438726,609.24,607.95,1.23050194]
[1743528344846,1.38438726,609.23,607.95,1.23050194]
[1743528345145,1.38438726,609.22,607.95,1.23050194]
[1743528345443,1.38438726,609.21,607.95,1.23050194]
[1743528345643,1.38438726,609.2,607.95,1.23050194]
[1743528345836,1.38438726,609.19,607.95,1.23050194]
[1743528346042,1.38438726,609.18,607.92,1.23050194]
[1743528346343,1.38438726,609.17,607.92,1.23050194]
[1743528346546,1.38438726,609.16,607.92,1.23050194]
[1743528346737,1.38438726,609.15,607.92,1.23050194]
[1743528346942,1.38438726,609.14,607.92,1.23050194]
[1743528347145,1.38438726,609.13,607.92,1.23050194]
[1743528347340,1.38438726,609.12,607.92,1.23050194]
[1743528347542,1.38438726,609.11,607.92,1.23050194]
[1743528347738,1.38438726,609.1,607.92,1.23050194]
[1743528347941,1.38438726,609.09,607.92,1.23050194]
[1743528348145,1.38438726,609.08,607.92,1.23050194]
[1743528348347,1.38438726,609.07,607.92,1.23050194]
[1743528348545,1.38438726,609.06,607.92,1.23050194]